lending/lending_fUSD_20240824
["ID","MTS","AMOUNT","RATE_DAILY","PERIOD"]
[335820598,1724509834818,-500.0,0.00010999,2]
[335820599,1724509834828,-500.0,0.00010999,2]
[335820600,1724509834837,-500.0,0.00010999,2]
[335820601,1724509834846,-500.0,0.00010999,2]
[335820602,1724509834856,-500.0,0.00010999,2]
[335820603,1724509834866,-500.0,0.00010999,2]
[335820604,1724509834875,-500.0,0.00010999,2]
[335820605,1724509834884,-500.0,0.00010999,2]
[335820606,1724509834894,-305.19914608,0.00010999,2]
[335820607,1724509834903,-243.52,0.00010999,2]
[335820608,1724509834912,-625.0,0.00010999,2]
[335820609,1724509834922,-718.0,0.00010999,2]
[335820610,1724509834931,-718.0,0.00010999,2]
[335820611,1724509834940,-718.0,0.00010999,2]
[335820612,1724509834950,-718.0,0.00010999,2]
[335820613,1724509834959,-718.0,0.00010999,2]
[335820614,1724509834969,-718.0,0.00010999,2]
[335820615,1724509834978,-718.0,0.00010999,2]
[335820616,1724509834988,-718.0,0.00010999,2]
[335820617,1724509834997,-718.0,0.00010999,2]
[335820618,1724509835007,-718.0,0.00010999,2]
[335820619,1724509835016,-718.0,0.00010999,2]
[335820620,1724509835027,-718.0,0.00010999,2]
[335820621,1724509835038,-718.0,0.00010999,2]
[335820622,1724509835047,-718.0,0.00010999,2]
[335820623,1724509835057,-718.0,0.00010999,2]
[335820624,1724509835066,-718.0,0.00010999,2]
[335820625,1724509835076,-718.0,0.00010999,2]
[335820626,1724509835085,-718.0,0.00010999,2]
[335820627,1724509835094,-727.0,0.00010999,2]
[335820628,1724509835103,-718.0,0.00010999,2]
[335820629,1724509835113,-727.0,0.00010999,2]
[335820630,1724509835122,-718.0,0.00010999,2]
[335820631,1724509835131,-718.0,0.00010999,2]
[335820632,1724509835141,-718.0,0.00010999,2]
[335820633,1724509835150,-727.0,0.00010999,2]
[335820634,1724509835159,-718.02,0.00010999,2]
[335820635,1724509835168,-727.0,0.00010999,2]
[335820636,1724509835177,-727.0,0.00010999,2]
[335820637,1724509835186,-727.0,0.00010999,2]
[335820638,1724509835196,-727.0,0.00010999,2]
[335820639,1724509835205,-727.0,0.00010999,2]
[335820640,1724509835214,-727.0,0.00010999,2]
[335820641,1724509835223,-727.0,0.00010999,2]
[335820642,1724509835232,-727.0,0.00010999,2]
[335820643,1724509835242,-727.0,0.00010999,2]
[335820644,1724509835251,-727.0,0.00010999,2]
[335820645,1724509835260,-727.0,0.00010999,2]
[335820646,1724509835269,-727.0,0.00010999,2]
[335820647,1724509835279,-727.0,0.00010999,2]
[335820648,1724509835289,-727.0,0.00010999,2]
[335820649,1724509835298,-727.0,0.00010999,2]
[335820650,1724509835309,-727.0,0.00010999,2]
[335820651,1724509835319,-727.0,0.00010999,2]
[335820652,1724509835330,-727.0,0.00010999,2]
[335820653,1724509835339,-727.0,0.00010999,2]
[335820654,1724509835348,-727.12,0.00010999,2]
[335820655,1724509835358,-500.0,0.00010999,2]
[335820656,1724509835367,-500.0,0.00010999,2]
[335820657,1724509835377,-500.0,0.00010999,2]
[335820658,1724509835386,-500.0,0.00010999,2]
[335820659,1724509835395,-500.0,0.00010999,2]
[335820660,1724509835404,-500.0,0.00010999,2]
[335820661,1724509835415,-500.0,0.00010999,2]
[335820662,1724509835424,-605.2,0.00010999,2]
[335820663,1724509835433,-500.0,0.00010999,2]
[335820664,1724509835442,-500.0,0.00010999,2]
[335820665,1724509835451,-500.0,0.00010999,2]
[335820666,1724509835461,-500.0,0.00010999,2]
[335820667,1724509835470,-500.0,0.00010999,2]
[335820668,1724509835479,-500.0,0.00010999,2]
[335820669,1724509835489,-500.0,0.00010999,2]
[335820670,1724509835504,-500.0,0.00010999,2]
[335820671,1724509835515,-500.0,0.00010999,2]
[335820672,1724509835526,-500.0,0.00010999,2]
[335820673,1724509835536,-500.0,0.00010999,2]
[335820674,1724509835546,-500.0,0.00010999,2]
[335820675,1724509835556,-500.0,0.00010999,2]
[335820676,1724509835566,-486.8,0.00010999,2]
[335820677,1724509835577,-1038.99,0.00010999,2]
[335820678,1724509835586,-1038.99,0.00010999,2]
[335820679,1724509835595,-1038.99,0.00010999,2]
[335820680,1724509835606,-500.0,0.00010999,2]
[335820681,1724509835615,-1038.99,0.00010999,2]
[335820682,1724509835626,-500.0,0.00010999,2]
[335820683,1724509835635,-1038.99,0.00010999,2]
[335820684,1724509835644,-154.1,0.00010999,2]
[335820685,1724509835653,-1038.99,0.00010999,2]
[335820686,1724509835662,-1038.99,0.00010999,2]
[335820687,1724509835671,-1038.99,0.00010999,2]
[335820688,1724509835680,-1038.99,0.00010999,2]
[335820689,1724509835689,-1038.99,0.00010999,2]
[335820690,1724509835698,-1038.99,0.00010999,2]
[335820691,1724509835707,-1038.99,0.00010999,2]
[335820692,1724509835716,-1038.99,0.00010999,2]
[335820693,1724509835725,-1038.99,0.00010999,2]
[335820694,1724509835735,-1038.99,0.00010999,2]
[335820695,1724509835745,-1038.99,0.00010999,2]
[335820696,1724509835754,-1038.99,0.00010999,2]
[335820697,1724509835763,-1038.99,0.00010999,2]
[335820698,1724509835774,-1038.99,0.00010999,2]
[335820699,1724509835783,-1038.99,0.00010999,2]
[335820700,1724509835792,-1038.99,0.00010999,2]
[335820701,1724509835803,-1038.99,0.00010999,2]
[335820702,1724509835813,-1039.22518078,0.00010999,2]
[335820703,1724509835824,-500.0,0.00010999,2]
[335820704,1724509835833,-500.0,0.00010999,2]
[335820705,1724509835842,-500.0,0.00010999,2]
[335820706,1724509835851,-500.0,0.00010999,2]
[335820707,1724509835860,-500.0,0.00010999,2]
[335820708,1724509835870,-500.0,0.00010999,2]
[335820709,1724509835879,-500.0,0.00010999,2]
[335820710,1724509835888,-500.0,0.00010999,2]
[335820711,1724509835897,-500.0,0.00010999,2]
[335820712,1724509835906,-500.0,0.00010999,2]
[335820713,1724509835916,-500.0,0.00010999,2]
[335820714,1724509835925,-500.0,0.00010999,2]
[335820715,1724509835935,-500.0,0.00010999,2]
[335820716,1724509835943,-500.0,0.00010999,2]
[335820717,1724509835953,-500.0,0.00010999,2]
[335820718,1724509835962,-287.2179579,0.00010999,2]
[335820719,1724509835972,-500.0,0.00010999,2]
[335820720,1724509835981,-500.0,0.00010999,2]
[335820721,1724509835990,-500.0,0.00010999,2]
[335820722,1724509835999,-500.0,0.00010999,2]
[335820723,1724509836008,-170.04,0.00010999,2]
[335820724,1724509836018,-499.99999999,0.00010999,2]
[335820725,1724509836029,-500.0,0.00010999,2]
[335820726,1724509836038,-500.0,0.00010999,2]
[335820727,1724509836047,-500.0,0.00010999,2]
[335820728,1724509836056,-500.0,0.00010999,2]
[335820729,1724509836065,-500.0,0.00010999,2]
[335820730,1724509836074,-500.0,0.00010999,2]
[335820731,1724509836083,-500.0,0.00010999,2]
[335820732,1724509836092,-500.0,0.00010999,2]
[335820733,1724509836101,-500.0,0.00010999,2]
[335820734,1724509836110,-500.0,0.00010999,2]
[335820735,1724509836120,-500.0,0.00010999,2]
[335820736,1724509836128,-396.28,0.00010999,2]
[335820737,1724509836137,-532.53330151,0.00010999,2]
[335820738,1724509836147,-500.0,0.00010999,2]
[335820739,1724509836155,-500.0,0.00010999,2]
[335820740,1724509836164,-500.0,0.00010999,2]
[335820741,1724509836174,-500.0,0.00010999,2]
[335820742,1724509836183,-500.0,0.00010999,2]
[335820743,1724509836192,-500.0,0.00010999,2]
[335820744,1724509836201,-435.76,0.00010999,2]
[335820745,1724509836211,-500.0,0.00010999,2]
[335820746,1724509836220,-564.61,0.00010999,2]
[335820747,1724509836229,-564.61,0.00010999,2]
[335820748,1724509836238,-564.61,0.00010999,2]
[335820749,1724509836247,-564.61,0.00010999,2]
[335820750,1724509836256,-564.61,0.00010999,2]
[335820751,1724509836266,-564.61,0.00010999,2]
[335820752,1724509836275,-564.61,0.00010999,2]
[335820753,1724509836402,-564.61,0.00010999,2]
[335820754,1724509836411,-500.0,0.00010999,2]
[335820755,1724509836421,-564.61,0.00010999,2]
[335820756,1724509836430,-564.61,0.00010999,2]
[335820757,1724509836439,-564.61,0.00010999,2]
[335820758,1724509836448,-564.61,0.00010999,2]
[335820759,1724509836458,-564.61,0.00010999,2]
[335820760,1724509836467,-564.61,0.00010999,2]
[335820761,1724509836476,-564.61,0.00010999,2]
[335820762,1724509836486,-552.04647086,0.00010999,2]
[335820763,1724509836497,-564.61,0.00010999,2]
[335820764,1724509836506,-564.61,0.00010999,2]
[335820765,1724509836515,-564.61,0.00010999,2]
[335820766,1724509836526,-564.61,0.00010999,2]
[335820767,1724509836537,-564.61,0.00010999,2]
[335820768,1724509836546,-564.61,0.00010999,2]
[335820769,1724509836555,-564.61,0.00010999,2]
[335820770,1724509836565,-564.7,0.00010999,2]
[335820771,1724509836577,-723.59,0.00010999,2]
[335820772,1724509836587,-723.59,0.00010999,2]
[335820773,1724509836596,-723.59,0.00010999,2]
[335820774,1724509836605,-723.59,0.00010999,2]
[335820775,1724509836614,-723.59,0.00010999,2]
[335820776,1724509836623,-723.59,0.00010999,2]
[335820777,1724509836632,-723.59,0.00010999,2]
[335820778,1724509836642,-723.59,0.00010999,2]
[335820779,1724509836652,-723.59,0.00010999,2]
[335820780,1724509836661,-723.59,0.00010999,2]
[335820781,1724509836670,-723.59,0.00010999,2]
[335820782,1724509836679,-723.59,0.00010999,2]
[335820783,1724509836688,-723.59,0.00010999,2]
[335820784,1724509836697,-723.59,0.00010999,2]
[335820785,1724509836706,-723.59,0.00010999,2]
[335820786,1724509836715,-723.59,0.00010999,2]
[335820787,1724509836724,-723.59,0.00010999,2]
[335820788,1724509836733,-723.59,0.00010999,2]
[335820789,1724509836743,-723.59,0.00010999,2]
[335820790,1724509836752,-723.59,0.00010999,2]
[335820791,1724509836761,-723.59,0.00010999,2]
[335820792,1724509836770,-723.59,0.00010999,2]
[335820793,1724509836780,-500.0,0.00010999,2]
[335820794,1724509836789,-723.76242919,0.00010999,2]
[335820795,1724509836798,-500.0,0.00010999,2]
[335820796,1724509836808,-500.0,0.00010999,2]
[335820797,1724509836817,-500.0,0.00010999,2]
[335820798,1724509836826,-500.0,0.00010999,2]
[335820799,1724509836835,-500.0,0.00010999,2]
[335820800,1724509836845,-500.0,0.00010999,2]
[335820801,1724509836854,-500.0,0.00010999,2]
[335820802,1724509836863,-500.0,0.00010999,2]
[335820803,1724509836872,-150.0,0.00010999,2]
[335820804,1724509836881,-500.0,0.00010999,2]
[335820805,1724509836890,-500.0,0.00010999,2]
[335820806,1724509836899,-500.0,0.00010999,2]
[335820807,1724509836908,-500.0,0.00010999,2]
[335820808,1724509836917,-500.0,0.00010999,2]
[335820809,1724509836926,-500.0,0.00010999,2]
[335820810,1724509836935,-585.36,0.00010999,2]
[335820811,1724509836944,-500.0,0.00010999,2]
[335820812,1724509836953,-585.36,0.00010999,2]
[335820813,1724509836963,-500.0,0.00010999,2]
[335820814,1724509836973,-585.36,0.00010999,2]
[335820815,1724509836982,-500.0,0.00010999,2]
[335820816,1724509836991,-585.36,0.00010999,2]
[335820817,1724509837001,-500.0,0.00010999,2]
[335820818,1724509837011,-585.36,0.00010999,2]
[335820819,1724509837020,-500.0,0.00010999,2]
[335820820,1724509837030,-585.36,0.00010999,2]
[335820821,1724509837039,-500.0,0.00010999,2]
[335820822,1724509837048,-585.36,0.00010999,2]
[335820823,1724509837057,-152.23662133,0.00010999,2]
[335820824,1724509837067,-585.36,0.00010999,2]
[335820825,1724509837077,-585.36,0.00010999,2]
[335820826,1724509837087,-585.36,0.00010999,2]
[335820827,1724509837096,-585.36,0.00010999,2]
[335820828,1724509837107,-585.36,0.00010999,2]
[335820829,1724509837118,-585.36,0.00010999,2]
[335820830,1724509837128,-585.36,0.00010999,2]
[335820831,1724509837138,-585.36,0.00010999,2]
[335820832,1724509837147,-585.36,0.00010999,2]
[335820833,1724509837156,-585.36,0.00010999,2]
[335820834,1724509837165,-585.36,0.00010999,2]
[335820835,1724509837175,-585.36,0.00010999,2]
[335820836,1724509837184,-500.0,0.00010999,2]
[335820837,1724509837193,-585.36,0.00010999,2]
[335820838,1724509837203,-585.36,0.00010999,2]
[335820839,1724509837212,-585.36,0.00010999,2]
[335820840,1724509837221,-585.4822579,0.00010999,2]
[335820841,1724509837230,-500.0,0.00010999,2]
[335820842,1724509837240,-500.0,0.00010999,2]
[335820843,1724509837250,-500.0,0.00010999,2]
[335820844,1724509837260,-500.0,0.00010999,2]
[335820845,1724509837273,-500.0,0.00010999,2]
[335820846,1724509837282,-615.46607275,0.00010999,2]
[335820847,1724509837291,-500.0,0.00010999,2]
[335820848,1724509837301,-500.0,0.00010999,2]
[335820849,1724509837311,-719.35,0.00010999,2]
[335820850,1724509837320,-500.0,0.00010999,2]
[335820851,1724509837329,-719.35,0.00010999,2]
[335820852,1724509837339,-500.0,0.00010999,2]
[335820853,1724509837348,-719.35,0.00010999,2]
[335820854,1724509837357,-500.0,0.00010999,2]
[335820855,1724509837366,-719.35,0.00010999,2]
[335820856,1724509837375,-500.0,0.00010999,2]
[335820857,1724509837384,-719.35,0.00010999,2]
[335820858,1724509837393,-500.0,0.00010999,2]
[335820859,1724509837402,-719.35,0.00010999,2]
[335820860,1724509837411,-500.0,0.00010999,2]
[335820861,1724509837420,-719.35,0.00010999,2]
[335820862,1724509837429,-500.0,0.00010999,2]
[335820863,1724509837439,-719.35,0.00010999,2]
[335820864,1724509837448,-500.0,0.00010999,2]
[335820865,1724509837457,-719.35,0.00010999,2]
[335820866,1724509837466,-500.0,0.00010999,2]
[335820867,1724509837475,-521.04,0.00010999,2]
[335820868,1724509837485,-719.35,0.00010999,2]
[335820869,1724509837496,-500.0,0.00010999,2]
[335820870,1724509837505,-719.35,0.00010999,2]
[335820871,1724509837514,-500.0,0.00010999,2]
[335820872,1724509837525,-719.35,0.00010999,2]
[335820873,1724509837535,-566.02,0.00010999,2]
[335820874,1724509837544,-719.35,0.00010999,2]
[335820875,1724509837553,-719.35,0.00010999,2]
[335820876,1724509837562,-719.35,0.00010999,2]
[335820877,1724509837573,-719.35,0.00010999,2]
[335820878,1724509837583,-719.35,0.00010999,2]
[335820879,1724509837592,-719.35,0.00010999,2]
[335820880,1724509837601,-719.35,0.00010999,2]
[335820881,1724509837610,-719.35,0.00010999,2]
[335820882,1724509837619,-719.35,0.00010999,2]
[335820883,1724509837629,-719.35,0.00010999,2]
[335820884,1724509837639,-719.38863973,0.00010999,2]
[335820885,1724509837648,-545.0,0.00011,2]
[335820886,1724509837658,-53568.4838092,0.00011,4]
[335820887,1724509837682,-626.83064209,0.00011,4]
[335820888,1724509837693,-1800.0,0.00011,4]
[335820891,1724509838127,-1070.82849079,0.00011,2]
[335820892,1724509838139,-1080.68345125,0.00011,2]
[335820893,1724509838219,-1466.43431141,0.00011,2]
[335820894,1724509838232,-1014.6173005,0.00011,2]
[335820895,1724509838296,-777.16020434,0.00011,2]
[335820896,1724509838309,-4120.83899802,0.00011,2]
[335820897,1724509838322,-16055.5,0.00011,2]
[335820899,1724509838397,-1544.59791416,0.00011,2]
[335820901,1724509838413,-388.25048675,0.00011,2]
[335820982,1724509840144,-1765.19999999,0.00011,2]
[335820994,1724509840311,-300.0,0.00011,2]
[335820996,1724509840324,-2015.94855758,0.00011,2]
[335820999,1724509840338,-624.25326234,0.00011,2]
[335821000,1724509840352,-467.98480933,0.00011,2]
[335821001,1724509840366,-1928.735502,0.00011,2]
[335821002,1724509840390,-701.66503495,0.00011,2]
[335821003,1724509840405,-1209.49724686,0.00011,2]
[335821020,1724509843168,-823.52658831,0.00011,2]
[335821021,1724509843306,-353.287,0.00011,2]
[335821022,1724509843379,-1218.83528,0.00011,2]
[335821023,1724509843393,-895.88804481,0.00011,2]
[335821148,1724509845988,-939.975,0.00011,2]
[335821149,1724509846076,-1027.60105323,0.00011,2]
[335821150,1724509846093,-300.40043,0.00011,2]
[335821151,1724509846106,-264.06840755,0.00011,2]
[335821152,1724509846256,-653.75012531,0.00011,2]
[335821153,1724509853152,-86725.0,0.00011,2]
[335821154,1724509940708,459.6124,9.966e-05,2]
[335821155,1724510021602,411.81,8.966e-05,2]
[335821162,1724510545259,1050.0,0.0001,2]
[335821175,1724510736148,407.48,8.219e-05,2]
[335821187,1724510843409,197.65,0.00010009,2]
[335821195,1724510885899,330.4044326,9.962e-05,2]
[335821203,1724510929946,174.6,0.00010079,2]
[335821206,1724510952969,1297.9617252,0.00010097,2]
[335821227,1724511018440,279.17828549,0.00010097,2]
[335821247,1724511032320,-3829.6703,0.00010136,2]
[335821248,1724511032330,-380.16,0.00010236,2]
[335821249,1724511032340,-230.4,0.00010318,2]
[335821250,1724511032349,-196.31,0.00010414,2]
[335821251,1724511032359,-407.48,0.00010477,2]
[335821252,1724511032367,-401.77622283,0.000108,2]
[335821253,1724511032377,-769.6,0.00010856,2]
[335821254,1724511032387,-300.0,0.00010858,2]
[335821255,1724511032408,-233.79,0.00010859,2]
[335821256,1724511032418,-7864.71,0.00010859,2]
[335821257,1724511032427,-152.59349176,0.00010899,2]
[335821259,1724511032437,-314.24701514,0.00010899,2]
[335821260,1724511032446,-152.59349174,0.00010899,2]
[335821262,1724511032455,-152.59349174,0.00010899,2]
[335821264,1724511032464,-152.59349174,0.000109,2]
[335821266,1724511032474,-152.59349174,0.000109,2]
[335821268,1724511032482,-496.34451118,0.000109,2]
[335821270,1724511032492,-3857.59797983,0.000109,2]
[335821272,1724511032501,-152.59349174,0.000109,2]
[335821274,1724511032511,-163.67346565,0.000109,2]
[335821276,1724511032520,-155.0,0.00010949,2]
[335821278,1724511032529,-429.3,0.00010959,2]
[335821280,1724511032539,-159.52,0.00010959,2]
[335821282,1724511032548,-212.20182364,0.00010979,2]
[335821284,1724511032557,-150.0,0.00010988,2]
[335821285,1724511032566,-2324.35807983,0.00010997,2]
[335821287,1724511032576,-500.0,0.00010998,2]
[335821289,1724511032585,-1954.69,0.00010998,2]
[335821291,1724511032595,-3258.48,0.00010998,2]
[335821293,1724511032604,-500.0,0.00010998,2]
[335821295,1724511032613,-500.0,0.00010999,2]
[335821297,1724511032622,-500.0,0.00010999,2]
[335821299,1724511032631,-500.0,0.00010999,2]
[335821301,1724511032645,-500.0,0.00010999,2]
[335821303,1724511032654,-500.0,0.00010999,2]
[335821305,1724511032663,-500.0,0.00010999,2]
[335821307,1724511032672,-500.0,0.00010999,2]
[335821309,1724511032681,-500.0,0.00010999,2]
[335821311,1724511032690,-500.0,0.00010999,2]
[335821313,1724511032699,-500.0,0.00010999,2]
[335821315,1724511032709,-410.90326454,0.00010999,2]
[335821317,1724511032718,-500.0,0.00010999,2]
[335821319,1724511032727,-500.0,0.00010999,2]
[335821321,1724511032736,-500.0,0.00010999,2]
[335821323,1724511032745,-500.0,0.00010999,2]
[335821325,1724511032754,-419.74,0.00010999,2]
[335821327,1724511032763,-1954.69,0.00010999,2]
[335821328,1724511032772,-1954.69,0.00010999,2]
[335821331,1724511032782,-1954.69,0.00010999,2]
[335821333,1724511032791,-1954.69,0.00010999,2]
[335821334,1724511032800,-1954.69,0.00010999,2]
[335821337,1724511032810,-1954.69,0.00010999,2]
[335821338,1724511032819,-1954.69,0.00010999,2]
[335821340,1724511032828,-1954.69,0.00010999,2]
[335821342,1724511032837,-1954.69,0.00010999,2]
[335821345,1724511032849,-1954.69,0.00010999,2]
[335821346,1724511032860,-1954.69,0.00010999,2]
[335821349,1724511032872,-1954.69,0.00010999,2]
[335821350,1724511032881,-1954.69,0.00010999,2]
[335821352,1724511032892,-1954.69,0.00010999,2]
[335821354,1724511032902,-1954.69,0.00010999,2]
[335821356,1724511032911,-1954.69,0.00010999,2]
[335821358,1724511032921,-1954.69,0.00010999,2]
[335821360,1724511032930,-1954.69,0.00010999,2]
[335821362,1724511032943,-1954.69,0.00010999,2]
[335821364,1724511032953,-1954.69,0.00010999,2]
[335821366,1724511032962,-1954.69,0.00010999,2]
[335821368,1724511032971,-1954.69,0.00010999,2]
[335821370,1724511032981,-1954.8046253,0.00010999,2]
[335821372,1724511032990,-500.0,0.00010999,2]
[335821374,1724511032999,-500.0,0.00010999,2]
[335821376,1724511033010,-500.0,0.00010999,2]
[335821378,1724511033019,-500.0,0.00010999,2]
[335821380,1724511033029,-500.0,0.00010999,2]
[335821382,1724511033038,-500.0,0.00010999,2]
[335821384,1724511033047,-500.0,0.00010999,2]
[335821386,1724511033056,-531.00583952,0.00010999,2]
[335821388,1724511033065,-500.0,0.00010999,2]
[335821390,1724511033074,-500.0,0.00010999,2]
[335821392,1724511033083,-500.0,0.00010999,2]
[335821394,1724511033092,-594.52972898,0.00010999,2]
[335821395,1724511033101,-500.0,0.00010999,2]
[335821396,1724511033110,-500.0,0.00010999,2]
[335821397,1724511033120,-500.0,0.00010999,2]
[335821398,1724511033129,-500.0,0.00010999,2]
[335821399,1724511033142,-500.0,0.00010999,2]
[335821400,1724511033151,-250.28523305,0.00010999,2]
[335821401,1724511033161,-897.102,0.00010999,2]
[335821402,1724511033170,-3258.48,0.00010999,2]
[335821403,1724511033179,-3258.48,0.00010999,2]
[335821404,1724511033188,-3258.48,0.00010999,2]
[335821405,1724511033197,-3258.48,0.00010999,2]
[335821406,1724511033206,-3258.48,0.00010999,2]
[335821407,1724511033216,-3258.48,0.00010999,2]
[335821408,1724511033225,-3258.48,0.00010999,2]
[335821409,1724511033234,-3258.48,0.00010999,2]
[335821410,1724511033243,-3258.48,0.00010999,2]
[335821411,1724511033252,-3258.48,0.00010999,2]
[335821412,1724511033261,-3258.48,0.00010999,2]
[335821413,1724511033271,-3258.48,0.00010999,2]
[335821414,1724511033280,-3258.48,0.00010999,2]
[335821415,1724511033289,-3258.48,0.00010999,2]
[335821416,1724511033299,-3258.48,0.00010999,2]
[335821417,1724511033308,-3258.48,0.00010999,2]
[335821418,1724511033318,-3258.48,0.00010999,2]
[335821419,1724511033327,-1194.11576392,0.00010999,2]
[335821420,1724511033340,-2064.36423608,0.00010999,2]
[335821421,1724511033349,-1030.26791683,0.00010999,2]
[335821441,1724511038361,-304.56425798,0.000109,2]
[335821442,1724511038370,-155.51119565,0.00010998,2]
[335821470,1724511040596,-344.48880435,0.00010998,2]
[335821471,1724511040607,-346.52021661,0.00010999,2]
[335821516,1724511046371,-155.0,0.00010899,2]
[335821517,1724511046380,-791.21399857,0.00010999,2]
[335821518,1724511046497,-669.58337309,0.00010999,2]
[335821519,1724511264983,400.8,8.348e-05,2]
[335821520,1724511393693,155.21104386,0.00010097,2]
[335821521,1724511437262,202.22,9.994e-05,2]
[335821522,1724511441509,173.11,0.0001,2]
[335821525,1724511527605,2049.02,9.978e-05,2]
[335821527,1724511604314,23880.0,9.964e-05,2]
[335821529,1724511620267,500.0,0.00027,120]
[335821530,1724511674565,501.0,0.00027,120]
[335821531,1724511684353,173.0,0.00027,120]
[335821532,1724511753192,339.68,9.984e-05,2]
[335821533,1724511771396,397.56,8.219e-05,2]
[335821534,1724511825065,155.1137372,9.962e-05,2]
[335821539,1724511946741,1584.62190859,0.00010097,2]
[335821540,1724511980449,156.2029938,0.00010097,2]
[335821543,1724512049032,280.14,9.934e-05,2]
[335821545,1724512080646,297.76769109,0.00010097,2]
[335821546,1724512095099,1350.82487782,0.00010097,2]
[335821547,1724512121216,191.67,9.968e-05,2]
[335821548,1724512168560,1000.0,9.936e-05,2]
[335821555,1724512184525,1739.40578979,0.00010097,2]
[335821559,1724512212994,295.03427055,0.00010097,2]
[335821560,1724512223390,5908.27,9.922e-05,2]
[335821569,1724512228501,204.11429483,0.00010097,2]
[335821578,1724512231435,-155.21641346,0.00010471,2]
[335821579,1724512231444,-138.22171527,0.00010471,2]
[335821580,1724512231499,-16.77828473,0.00010471,2]
[335821581,1724512231509,-157.40948503,0.00010471,2]
[335821582,1724512231519,-182.27758577,0.00010471,2]
[335821583,1724512231529,-397.56,0.00010473,2]
[335821584,1724512231542,-70.46824616,0.00010504,2]
[335821585,1724512231649,-100.53175384,0.00010504,2]
[335821586,1724512231659,-327.2489738,0.00010505,2]
[335821587,1724512231669,-17.32213405,0.00010505,2]
[335821588,1724512231680,-218.78829246,0.00010505,2]
[335821589,1724512231689,-357.41882144,0.00010505,2]
[335821590,1724512231699,-159.57347377,0.00010505,2]
[335821591,1724512231708,-298.88080064,0.00010505,2]
[335821592,1724512231718,-121.06511004,0.00010565,2]
[335821593,1724512231730,-178.93488996,0.00010565,2]
[335821594,1724512231739,-198.78897446,0.00010566,2]
[335821595,1724512231749,-155.0,0.00010566,2]
[335821596,1724512231758,-164.35872033,0.00010566,2]
[335821597,1724512231768,-155.59382276,0.00010699,2]
[335821598,1724512231777,-314.24701514,0.00010713,2]
[335821599,1724512231787,-156.966318,0.00010799,2]
[335821600,1724512231797,-155.94399844,0.000108,2]
[335821601,1724512231806,-158.78,0.00010852,2]
[335821602,1724512231815,-1240.86576091,0.00010852,2]
[335821603,1724512231827,-787.72537109,0.00010852,2]
[335821604,1724512231838,-753.09403611,0.00010852,2]
[335821605,1724512231855,-1978.03687977,0.00010852,2]
[335821606,1724512231865,-499.99,0.00010888,2]
[335821607,1724512231874,-215.07516055,0.00010888,2]
[335821608,1724512231883,-523.48607601,0.00010888,2]
[335821609,1724512231892,-179.65621575,0.00010888,2]
[335821610,1724512231902,-1910.03696891,0.0001089,2]
[335821611,1724512231911,-150.0,0.00010898,2]
[335821612,1724512231921,-835.2933,0.00010899,2]